{"text_format":"3","workbook":"xlsx","n_sheets":3,"sheets":["Dati sui lead","Vendite previste ","Previsione mensile ponderata"],"not_rendered":{"charts":1,"defined_names":10},"read":"whole","date_system":"1900"}

{"sheet":"Dati sui lead","index":0,"n_rows":9,"n_cols":10,"rows_kept":9,"merged":[[3,1,3,8]]}
[null,"Nome società"]
[null,"Registro lead dettagliato"]
[null,{"$f":"TODAY()","v":"2018-05-21"}]
[null,{"$f":"Nome_società","v":"Nome società"},{"$nulls":7},"RISERVATO"]
[null,"Nome del lead","Contatto lead","Lead \nOrigine","Lead \nArea geografica","Lead \nTipo","Opportunità potenziale","Probabilità \ndi vendita","Previsione \nChiusura","Ponderata \nPrevisione"]
[null,"A. Datum Corporation",{"$nulls":3},"Strategico",{"v":300000,"d":"€ 300,000.00"},{"v":0.9,"d":"90%"},"Gennaio",{"$f":"IFERROR(IF(DatiLead[Probabilità \ndi vendita]<>\"\",DatiLead[Probabilità \ndi vendita]*DatiLead[Opportunità potenziale],\"\"),\"\")","v":{"v":270000,"d":"€ 270,000.00"}}]
[null,"Adventure Works",{"$nulls":3},"Strategico",{"v":200000,"d":"€ 200,000.00"},{"v":0.1,"d":"10%"},"Febbraio",{"$f":"IFERROR(IF(DatiLead[Probabilità \ndi vendita]<>\"\",DatiLead[Probabilità \ndi vendita]*DatiLead[Opportunità potenziale],\"\"),\"\")","v":{"v":20000,"d":"€ 20,000.00"}}]
[null,"Alpine Ski House",{"$nulls":3},"Tattico",{"v":100000,"d":"€ 100,000.00"},{"v":0.2,"d":"20%"},"Marzo",{"$f":"IFERROR(IF(DatiLead[Probabilità \ndi vendita]<>\"\",DatiLead[Probabilità \ndi vendita]*DatiLead[Opportunità potenziale],\"\"),\"\")","v":{"v":20000,"d":"€ 20,000.00"}}]
[null,"Totale",{"$nulls":4},{"$f":"SUBTOTAL(109,DatiLead[Opportunità potenziale])","v":{"v":600000,"d":"€ 600,000.00"}},null,null,{"$f":"SUBTOTAL(109,DatiLead[Ponderata \nPrevisione])","v":{"v":310000,"d":"€ 310,000.00"}}]

{"sheet":"Vendite previste ","index":1,"n_rows":21,"n_cols":14,"rows_kept":21,"merged":[[3,1,3,11],[3,12,3,13]]}
[null,{"$f":"Nome_società","v":"Nome società"}]
[null,"Vendite previste"]
[null,{"$f":"DataRegistrazione","v":"2018-05-21"}]
[null,{"$f":"Nome_società","v":"Nome società"},{"$nulls":10},"RISERVATO"]
[null,"Nome del lead","Gennaio \nPrevisione","Febbraio \nPrevisione","Marzo \nPrevisione","Aprile \nPrevisione","Maggio \nPrevisione","Giugno \nPrevisione","luglio\nPrevisione","Agosto \nPrevisione","Settembre \nPrevisione","Ottobre \nPrevisione","Novembre \nPrevisione","Dicembre \nPrevisione"]
[null,{"$f":"IFERROR(IF(AND(DatiLead[Nome del lead] <> \"\", ROW(VenditePreviste[Nome del lead])<>UltimoElemento),DatiLead[Nome del lead], \"\"),\"\")","v":"A. Datum Corporation"},{"$f":"IFERROR(IF(DatiLead[Previsione \nChiusura] <>\"\",IF(DatiLead[Previsione \nChiusura]= \"Gennaio\",DatiLead[Ponderata \nPrevisione],0),\"\"),\"\")","v":{"v":270000,"d":"€ 270,000"}},{"$f":"IFERROR(IF(DatiLead[Previsione \nChiusura] <>\"\",IF(DatiLead[Previsione \nChiusura] = \"Febbraio\",DatiLead[Ponderata \nPrevisione],0),\"\"),\"\")","v":{"v":0,"d":"€ 0"}},{"$f":"IFERROR(IF(DatiLead[Previsione \nChiusura] <>\"\",IF(DatiLead[Previsione \nChiusura] = \"Marzo\",DatiLead[Ponderata \nPrevisione],0),\"\"),\"\")","v":{"v":0,"d":"€ 0"}},{"$f":"IFERROR(IF(DatiLead[Previsione \nChiusura] <>\"\",IF(DatiLead[Previsione \nChiusura] = \"Aprile\",DatiLead[Ponderata \nPrevisione],0),\"\"),\"\")","v":{"v":0,"d":"€ 0"}},{"$f":"IFERROR(IF(DatiLead[Previsione \nChiusura] <>\"\",IF(DatiLead[Previsione \nChiusura] = \"Maggio\",DatiLead[Ponderata \nPrevisione],0),\"\"),\"\")","v":{"v":0,"d":"€ 0"}},{"$f":"IFERROR(IF(DatiLead[Previsione \nChiusura] <>\"\",IF(DatiLead[Previsione \nChiusura] = \"Giugno\",DatiLead[Ponderata \nPrevisione],0),\"\"),\"\")","v":{"v":0,"d":"€ 0"}},{"$f":"IFERROR(IF(DatiLead[Previsione \nChiusura] <>\"\",IF(DatiLead[Previsione \nChiusura] = \"luglio\",DatiLead[Ponderata \nPrevisione],0),\"\"),\"\")","v":{"v":0,"d":"€ 0"}},{"$f":"IFERROR(IF(DatiLead[Previsione \nChiusura] <>\"\",IF(DatiLead[Previsione \nChiusura] = \"Agosto\",DatiLead[Ponderata \nPrevisione],0),\"\"),\"\")","v":{"v":0,"d":"€ 0"}},{"$f":"IFERROR(IF(DatiLead[Previsione \nChiusura] <>\"\",IF(DatiLead[Previsione \nChiusura] = \"Settembre\",DatiLead[Ponderata \nPrevisione],0),\"\"),\"\")","v":{"v":0,"d":"€ 0"}},{"$f":"IFERROR(IF(DatiLead[Previsione \nChiusura] <>\"\",IF(DatiLead[Previsione \nChiusura] = \"Ottobre\",DatiLead[Ponderata \nPrevisione],0),\"\"),\"\")","v":{"v":0,"d":"€ 0"}},{"$f":"IFERROR(IF(DatiLead[Previsione \nChiusura] <>\"\",IF(DatiLead[Previsione \nChiusura] = \"Novembre\",DatiLead[Ponderata \nPrevisione],0),\"\"),\"\")","v":{"v":0,"d":"€ 0"}},{"$f":"IFERROR(IF(DatiLead[Previsione \nChiusura] <>\"\",IF(DatiLead[Previsione \nChiusura] = \"Dicembre\",DatiLead[Ponderata \nPrevisione],0),\"\"),\"\")","v":{"v":0,"d":"€ 0"}}]
[null,{"$f":"IFERROR(IF(AND(DatiLead[Nome del lead] <> \"\", ROW(VenditePreviste[Nome del lead])<>UltimoElemento),DatiLead[Nome del lead], \"\"),\"\")","v":"Adventure Works"},{"$f":"IFERROR(IF(DatiLead[Previsione \nChiusura] <>\"\",IF(DatiLead[Previsione \nChiusura]= \"Gennaio\",DatiLead[Ponderata \nPrevisione],0),\"\"),\"\")","v":{"v":0,"d":"€ 0"}},{"$f":"IFERROR(IF(DatiLead[Previsione \nChiusura] <>\"\",IF(DatiLead[Previsione \nChiusura] = \"Febbraio\",DatiLead[Ponderata \nPrevisione],0),\"\"),\"\")","v":{"v":20000,"d":"€ 20,000"}},{"$f":"IFERROR(IF(DatiLead[Previsione \nChiusura] <>\"\",IF(DatiLead[Previsione \nChiusura] = \"Marzo\",DatiLead[Ponderata \nPrevisione],0),\"\"),\"\")","v":{"v":0,"d":"€ 0"}},{"$f":"IFERROR(IF(DatiLead[Previsione \nChiusura] <>\"\",IF(DatiLead[Previsione \nChiusura] = \"Aprile\",DatiLead[Ponderata \nPrevisione],0),\"\"),\"\")","v":{"v":0,"d":"€ 0"}},{"$f":"IFERROR(IF(DatiLead[Previsione \nChiusura] <>\"\",IF(DatiLead[Previsione \nChiusura] = \"Maggio\",DatiLead[Ponderata \nPrevisione],0),\"\"),\"\")","v":{"v":0,"d":"€ 0"}},{"$f":"IFERROR(IF(DatiLead[Previsione \nChiusura] <>\"\",IF(DatiLead[Previsione \nChiusura] = \"Giugno\",DatiLead[Ponderata \nPrevisione],0),\"\"),\"\")","v":{"v":0,"d":"€ 0"}},{"$f":"IFERROR(IF(DatiLead[Previsione \nChiusura] <>\"\",IF(DatiLead[Previsione \nChiusura] = \"luglio\",DatiLead[Ponderata \nPrevisione],0),\"\"),\"\")","v":{"v":0,"d":"€ 0"}},{"$f":"IFERROR(IF(DatiLead[Previsione \nChiusura] <>\"\",IF(DatiLead[Previsione \nChiusura] = \"Agosto\",DatiLead[Ponderata \nPrevisione],0),\"\"),\"\")","v":{"v":0,"d":"€ 0"}},{"$f":"IFERROR(IF(DatiLead[Previsione \nChiusura] <>\"\",IF(DatiLead[Previsione \nChiusura] = \"Settembre\",DatiLead[Ponderata \nPrevisione],0),\"\"),\"\")","v":{"v":0,"d":"€ 0"}},{"$f":"IFERROR(IF(DatiLead[Previsione \nChiusura] <>\"\",IF(DatiLead[Previsione \nChiusura] = \"Ottobre\",DatiLead[Ponderata \nPrevisione],0),\"\"),\"\")","v":{"v":0,"d":"€ 0"}},{"$f":"IFERROR(IF(DatiLead[Previsione \nChiusura] <>\"\",IF(DatiLead[Previsione \nChiusura] = \"Novembre\",DatiLead[Ponderata \nPrevisione],0),\"\"),\"\")","v":{"v":0,"d":"€ 0"}},{"$f":"IFERROR(IF(DatiLead[Previsione \nChiusura] <>\"\",IF(DatiLead[Previsione \nChiusura] = \"Dicembre\",DatiLead[Ponderata \nPrevisione],0),\"\"),\"\")","v":{"v":0,"d":"€ 0"}}]
[null,{"$f":"IFERROR(IF(AND(DatiLead[Nome del lead] <> \"\", ROW(VenditePreviste[Nome del lead])<>UltimoElemento),DatiLead[Nome del lead], \"\"),\"\")","v":"Alpine Ski House"},{"$f":"IFERROR(IF(DatiLead[Previsione \nChiusura] <>\"\",IF(DatiLead[Previsione \nChiusura]= \"Gennaio\",DatiLead[Ponderata \nPrevisione],0),\"\"),\"\")","v":{"v":0,"d":"€ 0"}},{"$f":"IFERROR(IF(DatiLead[Previsione \nChiusura] <>\"\",IF(DatiLead[Previsione \nChiusura] = \"Febbraio\",DatiLead[Ponderata \nPrevisione],0),\"\"),\"\")","v":{"v":0,"d":"€ 0"}},{"$f":"IFERROR(IF(DatiLead[Previsione \nChiusura] <>\"\",IF(DatiLead[Previsione \nChiusura] = \"Marzo\",DatiLead[Ponderata \nPrevisione],0),\"\"),\"\")","v":{"v":20000,"d":"€ 20,000"}},{"$f":"IFERROR(IF(DatiLead[Previsione \nChiusura] <>\"\",IF(DatiLead[Previsione \nChiusura] = \"Aprile\",DatiLead[Ponderata \nPrevisione],0),\"\"),\"\")","v":{"v":0,"d":"€ 0"}},{"$f":"IFERROR(IF(DatiLead[Previsione \nChiusura] <>\"\",IF(DatiLead[Previsione \nChiusura] = \"Maggio\",DatiLead[Ponderata \nPrevisione],0),\"\"),\"\")","v":{"v":0,"d":"€ 0"}},{"$f":"IFERROR(IF(DatiLead[Previsione \nChiusura] <>\"\",IF(DatiLead[Previsione \nChiusura] = \"Giugno\",DatiLead[Ponderata \nPrevisione],0),\"\"),\"\")","v":{"v":0,"d":"€ 0"}},{"$f":"IFERROR(IF(DatiLead[Previsione \nChiusura] <>\"\",IF(DatiLead[Previsione \nChiusura] = \"luglio\",DatiLead[Ponderata \nPrevisione],0),\"\"),\"\")","v":{"v":0,"d":"€ 0"}},{"$f":"IFERROR(IF(DatiLead[Previsione \nChiusura] <>\"\",IF(DatiLead[Previsione \nChiusura] = \"Agosto\",DatiLead[Ponderata \nPrevisione],0),\"\"),\"\")","v":{"v":0,"d":"€ 0"}},{"$f":"IFERROR(IF(DatiLead[Previsione \nChiusura] <>\"\",IF(DatiLead[Previsione \nChiusura] = \"Settembre\",DatiLead[Ponderata \nPrevisione],0),\"\"),\"\")","v":{"v":0,"d":"€ 0"}},{"$f":"IFERROR(IF(DatiLead[Previsione \nChiusura] <>\"\",IF(DatiLead[Previsione \nChiusura] = \"Ottobre\",DatiLead[Ponderata \nPrevisione],0),\"\"),\"\")","v":{"v":0,"d":"€ 0"}},{"$f":"IFERROR(IF(DatiLead[Previsione \nChiusura] <>\"\",IF(DatiLead[Previsione \nChiusura] = \"Novembre\",DatiLead[Ponderata \nPrevisione],0),\"\"),\"\")","v":{"v":0,"d":"€ 0"}},{"$f":"IFERROR(IF(DatiLead[Previsione \nChiusura] <>\"\",IF(DatiLead[Previsione \nChiusura] = \"Dicembre\",DatiLead[Ponderata \nPrevisione],0),\"\"),\"\")","v":{"v":0,"d":"€ 0"}}]
[null,{"$f":"IFERROR(IF(AND(DatiLead[Nome del lead] <> \"\", ROW(VenditePreviste[Nome del lead])<>UltimoElemento),DatiLead[Nome del lead], \"\"),\"\")","v":""},{"$f":"IFERROR(IF(DatiLead[Previsione \nChiusura] <>\"\",IF(DatiLead[Previsione \nChiusura]= \"Gennaio\",DatiLead[Ponderata \nPrevisione],0),\"\"),\"\")","v":""},{"$f":"IFERROR(IF(DatiLead[Previsione \nChiusura] <>\"\",IF(DatiLead[Previsione \nChiusura] = \"Febbraio\",DatiLead[Ponderata \nPrevisione],0),\"\"),\"\")","v":""},{"$f":"IFERROR(IF(DatiLead[Previsione \nChiusura] <>\"\",IF(DatiLead[Previsione \nChiusura] = \"Marzo\",DatiLead[Ponderata \nPrevisione],0),\"\"),\"\")","v":""},{"$f":"IFERROR(IF(DatiLead[Previsione \nChiusura] <>\"\",IF(DatiLead[Previsione \nChiusura] = \"Aprile\",DatiLead[Ponderata \nPrevisione],0),\"\"),\"\")","v":""},{"$f":"IFERROR(IF(DatiLead[Previsione \nChiusura] <>\"\",IF(DatiLead[Previsione \nChiusura] = \"Maggio\",DatiLead[Ponderata \nPrevisione],0),\"\"),\"\")","v":""},{"$f":"IFERROR(IF(DatiLead[Previsione \nChiusura] <>\"\",IF(DatiLead[Previsione \nChiusura] = \"Giugno\",DatiLead[Ponderata \nPrevisione],0),\"\"),\"\")","v":""},{"$f":"IFERROR(IF(DatiLead[Previsione \nChiusura] <>\"\",IF(DatiLead[Previsione \nChiusura] = \"luglio\",DatiLead[Ponderata \nPrevisione],0),\"\"),\"\")","v":""},{"$f":"IFERROR(IF(DatiLead[Previsione \nChiusura] <>\"\",IF(DatiLead[Previsione \nChiusura] = \"Agosto\",DatiLead[Ponderata \nPrevisione],0),\"\"),\"\")","v":""},{"$f":"IFERROR(IF(DatiLead[Previsione \nChiusura] <>\"\",IF(DatiLead[Previsione \nChiusura] = \"Settembre\",DatiLead[Ponderata \nPrevisione],0),\"\"),\"\")","v":""},{"$f":"IFERROR(IF(DatiLead[Previsione \nChiusura] <>\"\",IF(DatiLead[Previsione \nChiusura] = \"Ottobre\",DatiLead[Ponderata \nPrevisione],0),\"\"),\"\")","v":""},{"$f":"IFERROR(IF(DatiLead[Previsione \nChiusura] <>\"\",IF(DatiLead[Previsione \nChiusura] = \"Novembre\",DatiLead[Ponderata \nPrevisione],0),\"\"),\"\")","v":""},{"$f":"IFERROR(IF(DatiLead[Previsione \nChiusura] <>\"\",IF(DatiLead[Previsione \nChiusura] = \"Dicembre\",DatiLead[Ponderata \nPrevisione],0),\"\"),\"\")","v":""}]
[null,{"$f":"IFERROR(IF(AND(DatiLead[Nome del lead] <> \"\", ROW(VenditePreviste[Nome del lead])<>UltimoElemento),DatiLead[Nome del lead], \"\"),\"\")","v":""},{"$f":"IFERROR(IF(DatiLead[Previsione \nChiusura] <>\"\",IF(DatiLead[Previsione \nChiusura]= \"Gennaio\",DatiLead[Ponderata \nPrevisione],0),\"\"),\"\")","v":""},{"$f":"IFERROR(IF(DatiLead[Previsione \nChiusura] <>\"\",IF(DatiLead[Previsione \nChiusura] = \"Febbraio\",DatiLead[Ponderata \nPrevisione],0),\"\"),\"\")","v":""},{"$f":"IFERROR(IF(DatiLead[Previsione \nChiusura] <>\"\",IF(DatiLead[Previsione \nChiusura] = \"Marzo\",DatiLead[Ponderata \nPrevisione],0),\"\"),\"\")","v":""},{"$f":"IFERROR(IF(DatiLead[Previsione \nChiusura] <>\"\",IF(DatiLead[Previsione \nChiusura] = \"Aprile\",DatiLead[Ponderata \nPrevisione],0),\"\"),\"\")","v":""},{"$f":"IFERROR(IF(DatiLead[Previsione \nChiusura] <>\"\",IF(DatiLead[Previsione \nChiusura] = \"Maggio\",DatiLead[Ponderata \nPrevisione],0),\"\"),\"\")","v":""},{"$f":"IFERROR(IF(DatiLead[Previsione \nChiusura] <>\"\",IF(DatiLead[Previsione \nChiusura] = \"Giugno\",DatiLead[Ponderata \nPrevisione],0),\"\"),\"\")","v":""},{"$f":"IFERROR(IF(DatiLead[Previsione \nChiusura] <>\"\",IF(DatiLead[Previsione \nChiusura] = \"luglio\",DatiLead[Ponderata \nPrevisione],0),\"\"),\"\")","v":""},{"$f":"IFERROR(IF(DatiLead[Previsione \nChiusura] <>\"\",IF(DatiLead[Previsione \nChiusura] = \"Agosto\",DatiLead[Ponderata \nPrevisione],0),\"\"),\"\")","v":""},{"$f":"IFERROR(IF(DatiLead[Previsione \nChiusura] <>\"\",IF(DatiLead[Previsione \nChiusura] = \"Settembre\",DatiLead[Ponderata \nPrevisione],0),\"\"),\"\")","v":""},{"$f":"IFERROR(IF(DatiLead[Previsione \nChiusura] <>\"\",IF(DatiLead[Previsione \nChiusura] = \"Ottobre\",DatiLead[Ponderata \nPrevisione],0),\"\"),\"\")","v":""},{"$f":"IFERROR(IF(DatiLead[Previsione \nChiusura] <>\"\",IF(DatiLead[Previsione \nChiusura] = \"Novembre\",DatiLead[Ponderata \nPrevisione],0),\"\"),\"\")","v":""},{"$f":"IFERROR(IF(DatiLead[Previsione \nChiusura] <>\"\",IF(DatiLead[Previsione \nChiusura] = \"Dicembre\",DatiLead[Ponderata \nPrevisione],0),\"\"),\"\")","v":""}]
[null,{"$f":"IFERROR(IF(AND(DatiLead[Nome del lead] <> \"\", ROW(VenditePreviste[Nome del lead])<>UltimoElemento),DatiLead[Nome del lead], \"\"),\"\")","v":""},{"$f":"IFERROR(IF(DatiLead[Previsione \nChiusura] <>\"\",IF(DatiLead[Previsione \nChiusura]= \"Gennaio\",DatiLead[Ponderata \nPrevisione],0),\"\"),\"\")","v":""},{"$f":"IFERROR(IF(DatiLead[Previsione \nChiusura] <>\"\",IF(DatiLead[Previsione \nChiusura] = \"Febbraio\",DatiLead[Ponderata \nPrevisione],0),\"\"),\"\")","v":""},{"$f":"IFERROR(IF(DatiLead[Previsione \nChiusura] <>\"\",IF(DatiLead[Previsione \nChiusura] = \"Marzo\",DatiLead[Ponderata \nPrevisione],0),\"\"),\"\")","v":""},{"$f":"IFERROR(IF(DatiLead[Previsione \nChiusura] <>\"\",IF(DatiLead[Previsione \nChiusura] = \"Aprile\",DatiLead[Ponderata \nPrevisione],0),\"\"),\"\")","v":""},{"$f":"IFERROR(IF(DatiLead[Previsione \nChiusura] <>\"\",IF(DatiLead[Previsione \nChiusura] = \"Maggio\",DatiLead[Ponderata \nPrevisione],0),\"\"),\"\")","v":""},{"$f":"IFERROR(IF(DatiLead[Previsione \nChiusura] <>\"\",IF(DatiLead[Previsione \nChiusura] = \"Giugno\",DatiLead[Ponderata \nPrevisione],0),\"\"),\"\")","v":""},{"$f":"IFERROR(IF(DatiLead[Previsione \nChiusura] <>\"\",IF(DatiLead[Previsione \nChiusura] = \"luglio\",DatiLead[Ponderata \nPrevisione],0),\"\"),\"\")","v":""},{"$f":"IFERROR(IF(DatiLead[Previsione \nChiusura] <>\"\",IF(DatiLead[Previsione \nChiusura] = \"Agosto\",DatiLead[Ponderata \nPrevisione],0),\"\"),\"\")","v":""},{"$f":"IFERROR(IF(DatiLead[Previsione \nChiusura] <>\"\",IF(DatiLead[Previsione \nChiusura] = \"Settembre\",DatiLead[Ponderata \nPrevisione],0),\"\"),\"\")","v":""},{"$f":"IFERROR(IF(DatiLead[Previsione \nChiusura] <>\"\",IF(DatiLead[Previsione \nChiusura] = \"Ottobre\",DatiLead[Ponderata \nPrevisione],0),\"\"),\"\")","v":""},{"$f":"IFERROR(IF(DatiLead[Previsione \nChiusura] <>\"\",IF(DatiLead[Previsione \nChiusura] = \"Novembre\",DatiLead[Ponderata \nPrevisione],0),\"\"),\"\")","v":""},{"$f":"IFERROR(IF(DatiLead[Previsione \nChiusura] <>\"\",IF(DatiLead[Previsione \nChiusura] = \"Dicembre\",DatiLead[Ponderata \nPrevisione],0),\"\"),\"\")","v":""}]
[null,{"$f":"IFERROR(IF(AND(DatiLead[Nome del lead] <> \"\", ROW(VenditePreviste[Nome del lead])<>UltimoElemento),DatiLead[Nome del lead], \"\"),\"\")","v":""},{"$f":"IFERROR(IF(DatiLead[Previsione \nChiusura] <>\"\",IF(DatiLead[Previsione \nChiusura]= \"Gennaio\",DatiLead[Ponderata \nPrevisione],0),\"\"),\"\")","v":""},{"$f":"IFERROR(IF(DatiLead[Previsione \nChiusura] <>\"\",IF(DatiLead[Previsione \nChiusura] = \"Febbraio\",DatiLead[Ponderata \nPrevisione],0),\"\"),\"\")","v":""},{"$f":"IFERROR(IF(DatiLead[Previsione \nChiusura] <>\"\",IF(DatiLead[Previsione \nChiusura] = \"Marzo\",DatiLead[Ponderata \nPrevisione],0),\"\"),\"\")","v":""},{"$f":"IFERROR(IF(DatiLead[Previsione \nChiusura] <>\"\",IF(DatiLead[Previsione \nChiusura] = \"Aprile\",DatiLead[Ponderata \nPrevisione],0),\"\"),\"\")","v":""},{"$f":"IFERROR(IF(DatiLead[Previsione \nChiusura] <>\"\",IF(DatiLead[Previsione \nChiusura] = \"Maggio\",DatiLead[Ponderata \nPrevisione],0),\"\"),\"\")","v":""},{"$f":"IFERROR(IF(DatiLead[Previsione \nChiusura] <>\"\",IF(DatiLead[Previsione \nChiusura] = \"Giugno\",DatiLead[Ponderata \nPrevisione],0),\"\"),\"\")","v":""},{"$f":"IFERROR(IF(DatiLead[Previsione \nChiusura] <>\"\",IF(DatiLead[Previsione \nChiusura] = \"luglio\",DatiLead[Ponderata \nPrevisione],0),\"\"),\"\")","v":""},{"$f":"IFERROR(IF(DatiLead[Previsione \nChiusura] <>\"\",IF(DatiLead[Previsione \nChiusura] = \"Agosto\",DatiLead[Ponderata \nPrevisione],0),\"\"),\"\")","v":""},{"$f":"IFERROR(IF(DatiLead[Previsione \nChiusura] <>\"\",IF(DatiLead[Previsione \nChiusura] = \"Settembre\",DatiLead[Ponderata \nPrevisione],0),\"\"),\"\")","v":""},{"$f":"IFERROR(IF(DatiLead[Previsione \nChiusura] <>\"\",IF(DatiLead[Previsione \nChiusura] = \"Ottobre\",DatiLead[Ponderata \nPrevisione],0),\"\"),\"\")","v":""},{"$f":"IFERROR(IF(DatiLead[Previsione \nChiusura] <>\"\",IF(DatiLead[Previsione \nChiusura] = \"Novembre\",DatiLead[Ponderata \nPrevisione],0),\"\"),\"\")","v":""},{"$f":"IFERROR(IF(DatiLead[Previsione \nChiusura] <>\"\",IF(DatiLead[Previsione \nChiusura] = \"Dicembre\",DatiLead[Ponderata \nPrevisione],0),\"\"),\"\")","v":""}]
[null,{"$f":"IFERROR(IF(AND(DatiLead[Nome del lead] <> \"\", ROW(VenditePreviste[Nome del lead])<>UltimoElemento),DatiLead[Nome del lead], \"\"),\"\")","v":""},{"$f":"IFERROR(IF(DatiLead[Previsione \nChiusura] <>\"\",IF(DatiLead[Previsione \nChiusura]= \"Gennaio\",DatiLead[Ponderata \nPrevisione],0),\"\"),\"\")","v":""},{"$f":"IFERROR(IF(DatiLead[Previsione \nChiusura] <>\"\",IF(DatiLead[Previsione \nChiusura] = \"Febbraio\",DatiLead[Ponderata \nPrevisione],0),\"\"),\"\")","v":""},{"$f":"IFERROR(IF(DatiLead[Previsione \nChiusura] <>\"\",IF(DatiLead[Previsione \nChiusura] = \"Marzo\",DatiLead[Ponderata \nPrevisione],0),\"\"),\"\")","v":""},{"$f":"IFERROR(IF(DatiLead[Previsione \nChiusura] <>\"\",IF(DatiLead[Previsione \nChiusura] = \"Aprile\",DatiLead[Ponderata \nPrevisione],0),\"\"),\"\")","v":""},{"$f":"IFERROR(IF(DatiLead[Previsione \nChiusura] <>\"\",IF(DatiLead[Previsione \nChiusura] = \"Maggio\",DatiLead[Ponderata \nPrevisione],0),\"\"),\"\")","v":""},{"$f":"IFERROR(IF(DatiLead[Previsione \nChiusura] <>\"\",IF(DatiLead[Previsione \nChiusura] = \"Giugno\",DatiLead[Ponderata \nPrevisione],0),\"\"),\"\")","v":""},{"$f":"IFERROR(IF(DatiLead[Previsione \nChiusura] <>\"\",IF(DatiLead[Previsione \nChiusura] = \"luglio\",DatiLead[Ponderata \nPrevisione],0),\"\"),\"\")","v":""},{"$f":"IFERROR(IF(DatiLead[Previsione \nChiusura] <>\"\",IF(DatiLead[Previsione \nChiusura] = \"Agosto\",DatiLead[Ponderata \nPrevisione],0),\"\"),\"\")","v":""},{"$f":"IFERROR(IF(DatiLead[Previsione \nChiusura] <>\"\",IF(DatiLead[Previsione \nChiusura] = \"Settembre\",DatiLead[Ponderata \nPrevisione],0),\"\"),\"\")","v":""},{"$f":"IFERROR(IF(DatiLead[Previsione \nChiusura] <>\"\",IF(DatiLead[Previsione \nChiusura] = \"Ottobre\",DatiLead[Ponderata \nPrevisione],0),\"\"),\"\")","v":""},{"$f":"IFERROR(IF(DatiLead[Previsione \nChiusura] <>\"\",IF(DatiLead[Previsione \nChiusura] = \"Novembre\",DatiLead[Ponderata \nPrevisione],0),\"\"),\"\")","v":""},{"$f":"IFERROR(IF(DatiLead[Previsione \nChiusura] <>\"\",IF(DatiLead[Previsione \nChiusura] = \"Dicembre\",DatiLead[Ponderata \nPrevisione],0),\"\"),\"\")","v":""}]
[null,{"$f":"IFERROR(IF(AND(DatiLead[Nome del lead] <> \"\", ROW(VenditePreviste[Nome del lead])<>UltimoElemento),DatiLead[Nome del lead], \"\"),\"\")","v":""},{"$f":"IFERROR(IF(DatiLead[Previsione \nChiusura] <>\"\",IF(DatiLead[Previsione \nChiusura]= \"Gennaio\",DatiLead[Ponderata \nPrevisione],0),\"\"),\"\")","v":""},{"$f":"IFERROR(IF(DatiLead[Previsione \nChiusura] <>\"\",IF(DatiLead[Previsione \nChiusura] = \"Febbraio\",DatiLead[Ponderata \nPrevisione],0),\"\"),\"\")","v":""},{"$f":"IFERROR(IF(DatiLead[Previsione \nChiusura] <>\"\",IF(DatiLead[Previsione \nChiusura] = \"Marzo\",DatiLead[Ponderata \nPrevisione],0),\"\"),\"\")","v":""},{"$f":"IFERROR(IF(DatiLead[Previsione \nChiusura] <>\"\",IF(DatiLead[Previsione \nChiusura] = \"Aprile\",DatiLead[Ponderata \nPrevisione],0),\"\"),\"\")","v":""},{"$f":"IFERROR(IF(DatiLead[Previsione \nChiusura] <>\"\",IF(DatiLead[Previsione \nChiusura] = \"Maggio\",DatiLead[Ponderata \nPrevisione],0),\"\"),\"\")","v":""},{"$f":"IFERROR(IF(DatiLead[Previsione \nChiusura] <>\"\",IF(DatiLead[Previsione \nChiusura] = \"Giugno\",DatiLead[Ponderata \nPrevisione],0),\"\"),\"\")","v":""},{"$f":"IFERROR(IF(DatiLead[Previsione \nChiusura] <>\"\",IF(DatiLead[Previsione \nChiusura] = \"luglio\",DatiLead[Ponderata \nPrevisione],0),\"\"),\"\")","v":""},{"$f":"IFERROR(IF(DatiLead[Previsione \nChiusura] <>\"\",IF(DatiLead[Previsione \nChiusura] = \"Agosto\",DatiLead[Ponderata \nPrevisione],0),\"\"),\"\")","v":""},{"$f":"IFERROR(IF(DatiLead[Previsione \nChiusura] <>\"\",IF(DatiLead[Previsione \nChiusura] = \"Settembre\",DatiLead[Ponderata \nPrevisione],0),\"\"),\"\")","v":""},{"$f":"IFERROR(IF(DatiLead[Previsione \nChiusura] <>\"\",IF(DatiLead[Previsione \nChiusura] = \"Ottobre\",DatiLead[Ponderata \nPrevisione],0),\"\"),\"\")","v":""},{"$f":"IFERROR(IF(DatiLead[Previsione \nChiusura] <>\"\",IF(DatiLead[Previsione \nChiusura] = \"Novembre\",DatiLead[Ponderata \nPrevisione],0),\"\"),\"\")","v":""},{"$f":"IFERROR(IF(DatiLead[Previsione \nChiusura] <>\"\",IF(DatiLead[Previsione \nChiusura] = \"Dicembre\",DatiLead[Ponderata \nPrevisione],0),\"\"),\"\")","v":""}]
[null,{"$f":"IFERROR(IF(AND(DatiLead[Nome del lead] <> \"\", ROW(VenditePreviste[Nome del lead])<>UltimoElemento),DatiLead[Nome del lead], \"\"),\"\")","v":""},{"$f":"IFERROR(IF(DatiLead[Previsione \nChiusura] <>\"\",IF(DatiLead[Previsione \nChiusura]= \"Gennaio\",DatiLead[Ponderata \nPrevisione],0),\"\"),\"\")","v":""},{"$f":"IFERROR(IF(DatiLead[Previsione \nChiusura] <>\"\",IF(DatiLead[Previsione \nChiusura] = \"Febbraio\",DatiLead[Ponderata \nPrevisione],0),\"\"),\"\")","v":""},{"$f":"IFERROR(IF(DatiLead[Previsione \nChiusura] <>\"\",IF(DatiLead[Previsione \nChiusura] = \"Marzo\",DatiLead[Ponderata \nPrevisione],0),\"\"),\"\")","v":""},{"$f":"IFERROR(IF(DatiLead[Previsione \nChiusura] <>\"\",IF(DatiLead[Previsione \nChiusura] = \"Aprile\",DatiLead[Ponderata \nPrevisione],0),\"\"),\"\")","v":""},{"$f":"IFERROR(IF(DatiLead[Previsione \nChiusura] <>\"\",IF(DatiLead[Previsione \nChiusura] = \"Maggio\",DatiLead[Ponderata \nPrevisione],0),\"\"),\"\")","v":""},{"$f":"IFERROR(IF(DatiLead[Previsione \nChiusura] <>\"\",IF(DatiLead[Previsione \nChiusura] = \"Giugno\",DatiLead[Ponderata \nPrevisione],0),\"\"),\"\")","v":""},{"$f":"IFERROR(IF(DatiLead[Previsione \nChiusura] <>\"\",IF(DatiLead[Previsione \nChiusura] = \"luglio\",DatiLead[Ponderata \nPrevisione],0),\"\"),\"\")","v":""},{"$f":"IFERROR(IF(DatiLead[Previsione \nChiusura] <>\"\",IF(DatiLead[Previsione \nChiusura] = \"Agosto\",DatiLead[Ponderata \nPrevisione],0),\"\"),\"\")","v":""},{"$f":"IFERROR(IF(DatiLead[Previsione \nChiusura] <>\"\",IF(DatiLead[Previsione \nChiusura] = \"Settembre\",DatiLead[Ponderata \nPrevisione],0),\"\"),\"\")","v":""},{"$f":"IFERROR(IF(DatiLead[Previsione \nChiusura] <>\"\",IF(DatiLead[Previsione \nChiusura] = \"Ottobre\",DatiLead[Ponderata \nPrevisione],0),\"\"),\"\")","v":""},{"$f":"IFERROR(IF(DatiLead[Previsione \nChiusura] <>\"\",IF(DatiLead[Previsione \nChiusura] = \"Novembre\",DatiLead[Ponderata \nPrevisione],0),\"\"),\"\")","v":""},{"$f":"IFERROR(IF(DatiLead[Previsione \nChiusura] <>\"\",IF(DatiLead[Previsione \nChiusura] = \"Dicembre\",DatiLead[Ponderata \nPrevisione],0),\"\"),\"\")","v":""}]
[null,{"$f":"IFERROR(IF(AND(DatiLead[Nome del lead] <> \"\", ROW(VenditePreviste[Nome del lead])<>UltimoElemento),DatiLead[Nome del lead], \"\"),\"\")","v":""},{"$f":"IFERROR(IF(DatiLead[Previsione \nChiusura] <>\"\",IF(DatiLead[Previsione \nChiusura]= \"Gennaio\",DatiLead[Ponderata \nPrevisione],0),\"\"),\"\")","v":""},{"$f":"IFERROR(IF(DatiLead[Previsione \nChiusura] <>\"\",IF(DatiLead[Previsione \nChiusura] = \"Febbraio\",DatiLead[Ponderata \nPrevisione],0),\"\"),\"\")","v":""},{"$f":"IFERROR(IF(DatiLead[Previsione \nChiusura] <>\"\",IF(DatiLead[Previsione \nChiusura] = \"Marzo\",DatiLead[Ponderata \nPrevisione],0),\"\"),\"\")","v":""},{"$f":"IFERROR(IF(DatiLead[Previsione \nChiusura] <>\"\",IF(DatiLead[Previsione \nChiusura] = \"Aprile\",DatiLead[Ponderata \nPrevisione],0),\"\"),\"\")","v":""},{"$f":"IFERROR(IF(DatiLead[Previsione \nChiusura] <>\"\",IF(DatiLead[Previsione \nChiusura] = \"Maggio\",DatiLead[Ponderata \nPrevisione],0),\"\"),\"\")","v":""},{"$f":"IFERROR(IF(DatiLead[Previsione \nChiusura] <>\"\",IF(DatiLead[Previsione \nChiusura] = \"Giugno\",DatiLead[Ponderata \nPrevisione],0),\"\"),\"\")","v":""},{"$f":"IFERROR(IF(DatiLead[Previsione \nChiusura] <>\"\",IF(DatiLead[Previsione \nChiusura] = \"luglio\",DatiLead[Ponderata \nPrevisione],0),\"\"),\"\")","v":""},{"$f":"IFERROR(IF(DatiLead[Previsione \nChiusura] <>\"\",IF(DatiLead[Previsione \nChiusura] = \"Agosto\",DatiLead[Ponderata \nPrevisione],0),\"\"),\"\")","v":""},{"$f":"IFERROR(IF(DatiLead[Previsione \nChiusura] <>\"\",IF(DatiLead[Previsione \nChiusura] = \"Settembre\",DatiLead[Ponderata \nPrevisione],0),\"\"),\"\")","v":""},{"$f":"IFERROR(IF(DatiLead[Previsione \nChiusura] <>\"\",IF(DatiLead[Previsione \nChiusura] = \"Ottobre\",DatiLead[Ponderata \nPrevisione],0),\"\"),\"\")","v":""},{"$f":"IFERROR(IF(DatiLead[Previsione \nChiusura] <>\"\",IF(DatiLead[Previsione \nChiusura] = \"Novembre\",DatiLead[Ponderata \nPrevisione],0),\"\"),\"\")","v":""},{"$f":"IFERROR(IF(DatiLead[Previsione \nChiusura] <>\"\",IF(DatiLead[Previsione \nChiusura] = \"Dicembre\",DatiLead[Ponderata \nPrevisione],0),\"\"),\"\")","v":""}]
[null,{"$f":"IFERROR(IF(AND(DatiLead[Nome del lead] <> \"\", ROW(VenditePreviste[Nome del lead])<>UltimoElemento),DatiLead[Nome del lead], \"\"),\"\")","v":""},{"$f":"IFERROR(IF(DatiLead[Previsione \nChiusura] <>\"\",IF(DatiLead[Previsione \nChiusura]= \"Gennaio\",DatiLead[Ponderata \nPrevisione],0),\"\"),\"\")","v":""},{"$f":"IFERROR(IF(DatiLead[Previsione \nChiusura] <>\"\",IF(DatiLead[Previsione \nChiusura] = \"Febbraio\",DatiLead[Ponderata \nPrevisione],0),\"\"),\"\")","v":""},{"$f":"IFERROR(IF(DatiLead[Previsione \nChiusura] <>\"\",IF(DatiLead[Previsione \nChiusura] = \"Marzo\",DatiLead[Ponderata \nPrevisione],0),\"\"),\"\")","v":""},{"$f":"IFERROR(IF(DatiLead[Previsione \nChiusura] <>\"\",IF(DatiLead[Previsione \nChiusura] = \"Aprile\",DatiLead[Ponderata \nPrevisione],0),\"\"),\"\")","v":""},{"$f":"IFERROR(IF(DatiLead[Previsione \nChiusura] <>\"\",IF(DatiLead[Previsione \nChiusura] = \"Maggio\",DatiLead[Ponderata \nPrevisione],0),\"\"),\"\")","v":""},{"$f":"IFERROR(IF(DatiLead[Previsione \nChiusura] <>\"\",IF(DatiLead[Previsione \nChiusura] = \"Giugno\",DatiLead[Ponderata \nPrevisione],0),\"\"),\"\")","v":""},{"$f":"IFERROR(IF(DatiLead[Previsione \nChiusura] <>\"\",IF(DatiLead[Previsione \nChiusura] = \"luglio\",DatiLead[Ponderata \nPrevisione],0),\"\"),\"\")","v":""},{"$f":"IFERROR(IF(DatiLead[Previsione \nChiusura] <>\"\",IF(DatiLead[Previsione \nChiusura] = \"Agosto\",DatiLead[Ponderata \nPrevisione],0),\"\"),\"\")","v":""},{"$f":"IFERROR(IF(DatiLead[Previsione \nChiusura] <>\"\",IF(DatiLead[Previsione \nChiusura] = \"Settembre\",DatiLead[Ponderata \nPrevisione],0),\"\"),\"\")","v":""},{"$f":"IFERROR(IF(DatiLead[Previsione \nChiusura] <>\"\",IF(DatiLead[Previsione \nChiusura] = \"Ottobre\",DatiLead[Ponderata \nPrevisione],0),\"\"),\"\")","v":""},{"$f":"IFERROR(IF(DatiLead[Previsione \nChiusura] <>\"\",IF(DatiLead[Previsione \nChiusura] = \"Novembre\",DatiLead[Ponderata \nPrevisione],0),\"\"),\"\")","v":""},{"$f":"IFERROR(IF(DatiLead[Previsione \nChiusura] <>\"\",IF(DatiLead[Previsione \nChiusura] = \"Dicembre\",DatiLead[Ponderata \nPrevisione],0),\"\"),\"\")","v":""}]
[null,{"$f":"IFERROR(IF(AND(DatiLead[Nome del lead] <> \"\", ROW(VenditePreviste[Nome del lead])<>UltimoElemento),DatiLead[Nome del lead], \"\"),\"\")","v":""},{"$f":"IFERROR(IF(DatiLead[Previsione \nChiusura] <>\"\",IF(DatiLead[Previsione \nChiusura]= \"Gennaio\",DatiLead[Ponderata \nPrevisione],0),\"\"),\"\")","v":""},{"$f":"IFERROR(IF(DatiLead[Previsione \nChiusura] <>\"\",IF(DatiLead[Previsione \nChiusura] = \"Febbraio\",DatiLead[Ponderata \nPrevisione],0),\"\"),\"\")","v":""},{"$f":"IFERROR(IF(DatiLead[Previsione \nChiusura] <>\"\",IF(DatiLead[Previsione \nChiusura] = \"Marzo\",DatiLead[Ponderata \nPrevisione],0),\"\"),\"\")","v":""},{"$f":"IFERROR(IF(DatiLead[Previsione \nChiusura] <>\"\",IF(DatiLead[Previsione \nChiusura] = \"Aprile\",DatiLead[Ponderata \nPrevisione],0),\"\"),\"\")","v":""},{"$f":"IFERROR(IF(DatiLead[Previsione \nChiusura] <>\"\",IF(DatiLead[Previsione \nChiusura] = \"Maggio\",DatiLead[Ponderata \nPrevisione],0),\"\"),\"\")","v":""},{"$f":"IFERROR(IF(DatiLead[Previsione \nChiusura] <>\"\",IF(DatiLead[Previsione \nChiusura] = \"Giugno\",DatiLead[Ponderata \nPrevisione],0),\"\"),\"\")","v":""},{"$f":"IFERROR(IF(DatiLead[Previsione \nChiusura] <>\"\",IF(DatiLead[Previsione \nChiusura] = \"luglio\",DatiLead[Ponderata \nPrevisione],0),\"\"),\"\")","v":""},{"$f":"IFERROR(IF(DatiLead[Previsione \nChiusura] <>\"\",IF(DatiLead[Previsione \nChiusura] = \"Agosto\",DatiLead[Ponderata \nPrevisione],0),\"\"),\"\")","v":""},{"$f":"IFERROR(IF(DatiLead[Previsione \nChiusura] <>\"\",IF(DatiLead[Previsione \nChiusura] = \"Settembre\",DatiLead[Ponderata \nPrevisione],0),\"\"),\"\")","v":""},{"$f":"IFERROR(IF(DatiLead[Previsione \nChiusura] <>\"\",IF(DatiLead[Previsione \nChiusura] = \"Ottobre\",DatiLead[Ponderata \nPrevisione],0),\"\"),\"\")","v":""},{"$f":"IFERROR(IF(DatiLead[Previsione \nChiusura] <>\"\",IF(DatiLead[Previsione \nChiusura] = \"Novembre\",DatiLead[Ponderata \nPrevisione],0),\"\"),\"\")","v":""},{"$f":"IFERROR(IF(DatiLead[Previsione \nChiusura] <>\"\",IF(DatiLead[Previsione \nChiusura] = \"Dicembre\",DatiLead[Ponderata \nPrevisione],0),\"\"),\"\")","v":""}]
[null,{"$f":"IFERROR(IF(AND(DatiLead[Nome del lead] <> \"\", ROW(VenditePreviste[Nome del lead])<>UltimoElemento),DatiLead[Nome del lead], \"\"),\"\")","v":""},{"$f":"IFERROR(IF(DatiLead[Previsione \nChiusura] <>\"\",IF(DatiLead[Previsione \nChiusura]= \"Gennaio\",DatiLead[Ponderata \nPrevisione],0),\"\"),\"\")","v":""},{"$f":"IFERROR(IF(DatiLead[Previsione \nChiusura] <>\"\",IF(DatiLead[Previsione \nChiusura] = \"Febbraio\",DatiLead[Ponderata \nPrevisione],0),\"\"),\"\")","v":""},{"$f":"IFERROR(IF(DatiLead[Previsione \nChiusura] <>\"\",IF(DatiLead[Previsione \nChiusura] = \"Marzo\",DatiLead[Ponderata \nPrevisione],0),\"\"),\"\")","v":""},{"$f":"IFERROR(IF(DatiLead[Previsione \nChiusura] <>\"\",IF(DatiLead[Previsione \nChiusura] = \"Aprile\",DatiLead[Ponderata \nPrevisione],0),\"\"),\"\")","v":""},{"$f":"IFERROR(IF(DatiLead[Previsione \nChiusura] <>\"\",IF(DatiLead[Previsione \nChiusura] = \"Maggio\",DatiLead[Ponderata \nPrevisione],0),\"\"),\"\")","v":""},{"$f":"IFERROR(IF(DatiLead[Previsione \nChiusura] <>\"\",IF(DatiLead[Previsione \nChiusura] = \"Giugno\",DatiLead[Ponderata \nPrevisione],0),\"\"),\"\")","v":""},{"$f":"IFERROR(IF(DatiLead[Previsione \nChiusura] <>\"\",IF(DatiLead[Previsione \nChiusura] = \"luglio\",DatiLead[Ponderata \nPrevisione],0),\"\"),\"\")","v":""},{"$f":"IFERROR(IF(DatiLead[Previsione \nChiusura] <>\"\",IF(DatiLead[Previsione \nChiusura] = \"Agosto\",DatiLead[Ponderata \nPrevisione],0),\"\"),\"\")","v":""},{"$f":"IFERROR(IF(DatiLead[Previsione \nChiusura] <>\"\",IF(DatiLead[Previsione \nChiusura] = \"Settembre\",DatiLead[Ponderata \nPrevisione],0),\"\"),\"\")","v":""},{"$f":"IFERROR(IF(DatiLead[Previsione \nChiusura] <>\"\",IF(DatiLead[Previsione \nChiusura] = \"Ottobre\",DatiLead[Ponderata \nPrevisione],0),\"\"),\"\")","v":""},{"$f":"IFERROR(IF(DatiLead[Previsione \nChiusura] <>\"\",IF(DatiLead[Previsione \nChiusura] = \"Novembre\",DatiLead[Ponderata \nPrevisione],0),\"\"),\"\")","v":""},{"$f":"IFERROR(IF(DatiLead[Previsione \nChiusura] <>\"\",IF(DatiLead[Previsione \nChiusura] = \"Dicembre\",DatiLead[Ponderata \nPrevisione],0),\"\"),\"\")","v":""}]
[null,"Totale",{"$f":"SUBTOTAL(109,VenditePreviste[Gennaio \nPrevisione])","v":{"v":270000,"d":"€ 270,000"}},{"$f":"SUBTOTAL(109,VenditePreviste[Febbraio \nPrevisione])","v":{"v":20000,"d":"€ 20,000"}},{"$f":"SUBTOTAL(109,VenditePreviste[Marzo \nPrevisione])","v":{"v":20000,"d":"€ 20,000"}},{"$f":"SUBTOTAL(109,VenditePreviste[Aprile \nPrevisione])","v":{"v":0,"d":"€ 0"}},{"$f":"SUBTOTAL(109,VenditePreviste[Maggio \nPrevisione])","v":{"v":0,"d":"€ 0"}},{"$f":"SUBTOTAL(109,VenditePreviste[Giugno \nPrevisione])","v":{"v":0,"d":"€ 0"}},{"$f":"SUBTOTAL(109,VenditePreviste[luglio\nPrevisione])","v":{"v":0,"d":"€ 0"}},{"$f":"SUBTOTAL(109,VenditePreviste[Agosto \nPrevisione])","v":{"v":0,"d":"€ 0"}},{"$f":"SUBTOTAL(109,VenditePreviste[Settembre \nPrevisione])","v":{"v":0,"d":"€ 0"}},{"$f":"SUBTOTAL(109,VenditePreviste[Ottobre \nPrevisione])","v":{"v":0,"d":"€ 0"}},{"$f":"SUBTOTAL(109,VenditePreviste[Novembre \nPrevisione])","v":{"v":0,"d":"€ 0"}},{"$f":"SUBTOTAL(109,VenditePreviste[Dicembre \nPrevisione])","v":{"v":0,"d":"€ 0"}}]
[null,"Totale cumulativo",{"$f":"C20","v":{"v":270000,"d":"€ 270,000"}},{"$f":"C21+D20","v":{"v":290000,"d":"€ 290,000"}},{"$f":"D21+E20","v":{"v":310000,"d":"€ 310,000"}},{"$f":"E21+F20","v":{"v":310000,"d":"€ 310,000"}},{"$f":"F21+G20","v":{"v":310000,"d":"€ 310,000"}},{"$f":"G21+H20","v":{"v":310000,"d":"€ 310,000"}},{"$f":"H21+I20","v":{"v":310000,"d":"€ 310,000"}},{"$f":"I21+J20","v":{"v":310000,"d":"€ 310,000"}},{"$f":"J21+K20","v":{"v":310000,"d":"€ 310,000"}},{"$f":"K21+L20","v":{"v":310000,"d":"€ 310,000"}},{"$f":"L21+M20","v":{"v":310000,"d":"€ 310,000"}},{"$f":"M21+N20","v":{"v":310000,"d":"€ 310,000"}}]

{"sheet":"Previsione mensile ponderata","index":2,"n_rows":3,"n_cols":2,"rows_kept":3}
[null,{"$f":"Nome_società","v":"Nome società"}]
[null,"Previsione mensile ponderata"]
[null," "]